Cogmind - Beta 15 @@@ ROGUE MODE // 2025.05.16 @ 23:39:42 Player: 0_0 Result: Destroyed by Z-Imprinter with Zionite Laser-M Performance ------------- Evolutions (1) 500 Regions Visited (6) 1200 Robots Destroyed (18) 90 Value Destroyed (463) 463 Prototype IDs (0) 0 Alien Tech Used (0) 0 Bonus (600) 600 TOTAL SCORE: 2853 Bonus ------- Met Imprinter 300 Was Imprinted 300 Cogmind --------- Core Integrity 0/400 Matter 300/300 Energy 98/100 System Corruption 0% Temperature Cool (18) Movement Core (50) Location -7/Deep Caves Parts ------- > --- POWER (1) -------- (None) > --- PROPULSION (4) --- (None) > --- UTILITY (2) ------ Visual Processing Unit > --- WEAPON (2) ------- (None) > --- INVENTORY (5) ---- Improved Ion Engine 0b10 Decoder Chip [Scout] Advanced ECM Suite Authchip [Propulsion] Self-destruct Interrupter (50) Peak State ------------ > --- POWER ------------ Improved Ion Engine > --- PROPULSION ------- Flight Unit Flight Unit Flight Unit Flight Unit > --- UTILITY ---------- Compact Matter Pod Visual Processing Unit > --- WEAPON ----------- Light Assault Rifle Rocket Launcher > --- INVENTORY -------- Ion Engine Hardlight Generator Authchip [Propulsion] Rocket Launcher Flail [Rating: 15] Favorites ----------- Power Improved Ion Engine Engine Improved Ion Engine Propulsion Flight Unit Treads Light Treads Flight Unit Flight Unit Utility Visual Processing Unit Device Hardlight Generator Storage Compact Matter Pod Processor Visual Processing Unit Weapon Light Assault Rifle Energy Gun Medium Laser Ballistic Gun Light Assault Rifle Launcher Rocket Launcher Impact Weapon Flail Build | -11 -10 -10 -9 -9 -7 -7 ------- Run | Yrd Mat Min Mat Min Zio Dee Slots Evolved 2 | . . . 2 . . . Power . | . . . . . . . Propulsion 2 | . . . 2 . . . Utility . | . . . . . . . Weapon . | . . . . . . . Parts Attached 24 | 6 . 8 9 . . 1 Power 4 | 1 . 1 1 . . 1 Engine 4 | 1 . 1 1 . . 1 Core . | . . . . . . . Reactor . | . . . . . . . Propulsion 9 | 2 . 2 5 . . . Treads 2 | 2 . . . . . . Leg . | . . . . . . . Wheel . | . . . . . . . Hover . | . . . . . . . Flight 7 | . . 2 5 . . . Utility 4 | 1 . 2 1 . . . Device 1 | . . 1 . . . . Storage 2 | 1 . 1 . . . . Processor 1 | . . . 1 . . . Hackware . | . . . . . . . Protection . | . . . . . . . Artifact . | . . . . . . . Weapon 7 | 2 . 3 2 . . . Energy Gun 2 | 1 . 1 . . . . Energy Cannon . | . . . . . . . Ballistic Gun 1 | 1 . . . . . . Ballistic Cannon . | . . . . . . . Launcher 3 | . . 2 1 . . . Special Weapon . | . . . . . . . Impact Weapon 1 | . . . 1 . . . Slashing Weapon . | . . . . . . . Piercing Weapon . | . . . . . . . Special Melee Weapon . | . . . . . . . Unidentified Prototypes . | . . . . . . . Parts Lost 13 | . . 1 5 . . 7 Power 3 | . . . 2 . . 1 Propulsion 7 | . . 1 2 . . 4 Utility . | . . . . . . . Weapon 3 | . . . 1 . . 2 Highest Loss Streak 7 | . . 1 2 . . 7 To Critical Strikes . | . . . . . . . Average Backups 3 | 1 2 4 3 4 4 4 Power . | . 1 1 1 1 1 1 Propulsion . | . . . . . . . Utility 1 | . . 1 1 1 2 3 Weapon 1 | . 1 1 1 2 1 . Tool/Special . | . . . . . . . Unused Backups 4 | . . . . . 1 3 Power . | . . . . . . . Propulsion . | . . . . . . . Utility 3 | . . . . . . 3 Weapon 1 | . . . . . 1 . Tool/Special . | . . . . . . . Average Slot Usage (%) 92 | . 85 67 92 100 100 79 Engine 11 | . 14 14 10 11 11 9 Flight 39 | . . 19 39 44 44 36 Storage 10 | . 14 4 11 11 11 8 Processor 9 | . . . 10 11 11 11 Energy Gun 3 | . 14 9 8 . . . Ballistic Gun 10 | . 14 12 9 11 11 7 Launcher 6 | . . 3 1 11 11 6 Peak Build Rating 15 | 6 6 8 14 14 15 15 Average Rating 11 | 5 6 5 11 14 14 12 On Entrance 8 | . 6 6 5 14 14 15 Naked Turns . | . . . . . . . Heaviest Build 13 | 13 13 13 13 13 13 13 Greatest Support 40 | 40 40 40 16 16 16 16 Greatest Overweight (x) 1 | . . 1 1 . . 1 Average Overweight (x) . | . . . . . . . Largest Inventory Capacity 8 | 8 8 8 5 5 5 5 Average Capacity 5 | 7 8 5 5 5 5 5 Most Carried 5 | 2 2 5 5 5 5 5 Average Carried 3 | 1 2 4 3 4 4 5 Final Capacity 8 | 8 8 5 5 5 5 5 Final Carried 5 | 2 2 5 4 5 5 5 Class Distribution -------------------- 68% | Scavenger-Sprinter 28% | Mutant 3% | Sprinter Dominant Class ---------------- Mutant | -10/Materials Mutant | -10/Mines Scavenger-Sprinter | -9/Materials Scavenger-Sprinter | -9/Mines Scavenger-Sprinter | -7/Zion Scavenger-Sprinter | -7/Deep Caves Resources | -11 -10 -10 -9 -9 -7 -7 ----------- Run | Yrd Mat Min Mat Min Zio Dee Matter Collected 634 | 243 . 142 193 46 . 10 Remotely . | . . . . . . . Salvage Created 624 | 43 . 144 437 . . . Parts 47 | 1 . 11 35 . . . Haulers Intercepted . | . . . . . . . Recyclers Shooed 1 | . . 1 . . . . Parts Field Recycled . | . . . . . . . Retrieved Matter . | . . . . . . . Parts Self-Destructed . | . . . . . . . Prevented . | . . . . . . . Kills | -11 -10 -10 -9 -9 -7 -7 ------- Run | Yrd Mat Min Mat Min Zio Dee Combat Hostiles Destroyed 15 | . . 4 10 . . 1 Melee 1 | . . . 1 . . . Guns 9 | . . 2 7 . . . AOE 4 | . . 1 2 . . 1 Classes Destroyed 8 | 1 . 3 3 . . 1 Worker 1 | . . . 1 . . . Builder 1 | . . 1 . . . . Recycler 1 | 1 . . . . . . Watcher 1 | . . . 1 . . . Swarmer 5 | . . 2 3 . . . Grunt 6 | . . 2 4 . . . Sentry 3 | . . . 3 . . . Assembled 1 | . . . . . . 1 Best Kill Streak 5 | 1 . 3 5 . . 1 Combat Bots Only 3 | . . 2 3 . . 1 Max Kills in Single Turn 1 | 1 . 1 1 . . 1 Gunslinging . | . . . . . . . Exploded 1 | . . 1 1 . . 1 Melee 1 | . . . 1 . . . Uniques/NPCs Destroyed . | . . . . . . . Combat | -11 -10 -10 -9 -9 -7 -7 -------- Run | Yrd Mat Min Mat Min Zio Dee Hostile Shots Fired 130 | . . 27 65 . . 38 Missed 64 | . . 11 33 . . 20 Hits 66 | . . 16 32 . . 18 Projectile 66 | . . 16 32 . . 18 Damage Taken 1277 | . . 218 421 . . 638 Core 482 | . . 55 106 . . 321 Absorbed by Shields . | . . . . . . . Core Remaining (%) 89 | 100 . 78 . . . . Volleys Fired 60 | . . 17 35 . . 8 Largest 2 | . . 2 2 . . 2 Hottest 70 | . . 70 70 . . 53 Shots Fired 109 | . . 28 66 . . 15 Gun 89 | . . 22 59 . . 8 Cannon . | . . . . . . . Launcher 20 | . . 6 7 . . 7 Special . | . . . . . . . Kinetic 60 | . . 17 35 . . 8 Thermal 29 | . . 5 24 . . . Explosive 10 | . . . 3 . . 7 Electromagnetic 10 | . . 6 4 . . . Robot Hit Streak 12 | . . 3 12 . . 1 Robot Miss Streak 3 | . . 3 3 . . 2 Penetration Max . | . . . . . . . Secondary Targets 2 | . . . 2 . . . Max Gunslinging Chain 1 | . . . 1 . . . Shots Hit Robots 52 | . . 12 39 . . 1 Core Hits 31 | 1 . 6 21 . . 3 Critical Kills . | . . . . . . . Critical Parts Destroyed . | . . . . . . . Critical Strikes 2 | . . . 2 . . . Burn 2 | . . . 2 . . . Melee Attacks 2 | . . . 2 . . . Impact 2 | . . . 2 . . . Slashing . | . . . . . . . Piercing . | . . . . . . . Sneak Attacks . | . . . . . . . Combat Hostiles . | . . . . . . . Follow-up Attacks . | . . . . . . . Damage Inflicted 1194 | 10 . 352 769 . . 63 Guns 453 | . . 84 359 . . 10 Cannons . | . . . . . . . Explosions 695 | . . 268 374 . . 53 Melee 36 | . . . 36 . . . Ramming 10 | 10 . . . . . . Kinetic 266 | . . 72 184 . . 10 Thermal 227 | . . 12 215 . . . Explosive 53 | . . . . . . 53 Electromagnetic 602 | . . 268 334 . . . Impact 36 | . . . 36 . . . Slashing . | . . . . . . . Piercing . | . . . . . . . Highest Corruption . | . . . . . . . Average Corruption . | . . . . . . . Corruption Purged . | . . . . . . . Corruption Blocked . | . . . . . . . Overload Shots . | . . . . . . . Overflow Damage 24 | . . 24 . . . . Projectiles . | . . . . . . . Explosions 24 | . . 24 . . . . Melee . | . . . . . . . Knockbacks 1 | 1 . . . . . . Impact 1 | 1 . . . . . . Kinetic . | . . . . . . . Secondary . | . . . . . . . Self-Inflicted Damage 102 | . . 34 48 . . 20 Shots 5 | . . 2 2 . . 1 Rammed 6 | 6 . . . . . . Targets Rammed 7 | 7 . . . . . . Kicked . | . . . . . . . Crushed 1 | 1 . . . . . . Highest Temperature 118 | . . 78 118 . . 26 Average Temperature 34 | . . 39 38 . . 10 Received Heat Transfer 330 | . . 66 111 . . 153 Siege Activations . | . . . . . . . Martial Activations . | . . . . . . . Shielding Activations . | . . . . . . . Robots Disrupted . | . . . . . . . Combat Hostiles . | . . . . . . . Robots Corrupted 1 | . . 1 . . . . Combat Hostiles 1 | . . 1 . . . . Parts Fried 5 | . . 3 2 . . . Impact Corruptions . | . . . . . . . Robots Melted . | . . . . . . . Combat Hostiles . | . . . . . . . Parts Melted . | . . . . . . . Heat Transferred 753 | . . 37 716 . . . Parts Sabotaged . | . . . . . . . Parts Stolen . | . . . . . . . Parts Stripped . | . . . . . . . Power Chain Reactions 1 | . . . 1 . . . Alert | -11 -10 -10 -9 -9 -7 -7 ------- Run | Yrd Mat Min Mat Min Zio Dee Maximum Alert Level . | . . . . . . . Low Security (%) 100 | 100 100 100 100 100 . . Level 1 . | . . . . . . . Level 2 . | . . . . . . . Level 3 . | . . . . . . . Level 4 . | . . . . . . . Level 5 . | . . . . . . . High Security . | . . . . . . . Max Security . | . . . . . . . Peak Influence 132 | 5 . 40 132 51 . . Initial 51 | . . . 9 51 . . Average 28 | . . 20 46 21 . . Influence Increases 475 | 5 . 95 375 . . . Destroy 0b10 Robot/C 280 | . . 80 200 . . . Destroy 0b10 Robot/NC 20 | 5 . 5 10 . . . Destroy Leader 62 | . . 10 52 . . . Successful Hack 9 | . . . 9 . . . Disable Machine 30 | . . . 30 . . . Destroy Structure 29 | . . . 29 . . . Partial Spotted 30 | . . . 30 . . . Lose Combat Pursuer 15 | . . . 15 . . . Influence Decreases 475 | 5 . 70 268 132 . . Entered New Map 97 | . . . 16 81 . . Time Decay 329 | 5 . 60 213 51 . . Lost Part 49 | . . 10 39 . . . Squads Dispatched 2 | . . 1 1 . . . Investigation 1 | . . 1 . . . . Extermination . | . . . . . . . Reinforcement 1 | . . . 1 . . . Assault . | . . . . . . . Garrison . | . . . . . . . Intercept . | . . . . . . . Searches Triggered . | . . . . . . . Construction Impeded . | . . . . . . . Haulers Reinforced . | . . . . . . . Active Scanning Responses . | . . . . . . . Cargo Convoy Interrupts . | . . . . . . . Stealth | -11 -10 -10 -9 -9 -7 -7 --------- Run | Yrd Mat Min Mat Min Zio Dee Distress Signals 1 | . . . 1 . . . Communications Jammed . | . . . . . . . Distress Signals . | . . . . . . . Times Spotted 31 | . . 5 18 . . 8 Peak Tracking Total 6 | . . 2 4 . . 6 Tactical Retreats 2 | . . . 1 . . 1 Traps | -11 -10 -10 -9 -9 -7 -7 ------- Run | Yrd Mat Min Mat Min Zio Dee Traps Triggered . | . . . . . . . Indirectly . | . . . . . . . Trap Hack Attempts . | . . . . . . . Triggered . | . . . . . . . Disarmed . | . . . . . . . Reprogrammed . | . . . . . . . Reused . | . . . . . . . Traps Extracted . | . . . . . . . Installed . | . . . . . . . Triggered . | . . . . . . . Machines | -11 -10 -10 -9 -9 -7 -7 ---------- Run | Yrd Mat Min Mat Min Zio Dee Machines Disabled 3 | . . . 2 . . 1 Max in Single Turn 1 | . . . 1 . . 1 Machines Repaired . | . . . . . . . Machines Dismantled . | . . . . . . . Machines Sabotaged . | . . . . . . . Overloaded Fab Kills . | . . . . . . . Hacking | -11 -10 -10 -9 -9 -7 -7 --------- Run | Yrd Mat Min Mat Min Zio Dee Machines Accessed 2 | . . 1 1 . . . Terminals 1 | . . . 1 . . . Fabricators . | . . . . . . . Repair Stations . | . . . . . . . Recycling Units . | . . . . . . . Scanalyzers . | . . . . . . . Garrison Access . | . . . . . . . Total Hacks 3 | . . 1 2 . . . Successful 2 | . . 1 1 . . . Failed 1 | . . . 1 . . . Catastrophic . | . . . . . . . Database Lockouts . | . . . . . . . Manual 7 | . . . 2 . 5 . Terminals 2 | . . . 2 . . . Fabricators . | . . . . . . . Repair Stations . | . . . . . . . Recycling Units . | . . . . . . . Scanalyzers . | . . . . . . . Garrison Access . | . . . . . . . Terminal Hacks 2 | . . 1 1 . . . Open Door 1 | . . 1 . . . . Level Access Points 1 | . . . 1 . . . Fabricator Hacks . | . . . . . . . Repair Station Hacks . | . . . . . . . Recycling Unit Hacks . | . . . . . . . Scanalyzer . | . . . . . . . Garrison Access Hacks . | . . . . . . . Unauthorized Hacks . | . . . . . . . Terminals . | . . . . . . . Fabricators . | . . . . . . . Repair Stations . | . . . . . . . Recycling Units . | . . . . . . . Scanalyzers . | . . . . . . . Garrison Access . | . . . . . . . Data Cores Recovered . | . . . . . . . Used . | . . . . . . . Hacking Detections 1 | . . . 1 . . . Full Trace Events . | . . . . . . . Feedback Events . | . . . . . . . Feedback Blocked . | . . . . . . . Robot Schematics Acquired 3 | . . . . . 3 . Robots Built . | . . . . . . . Authchips . | . . . . . . . Time . | . . . . . . . Total Robot Build Rating . | . . . . . . . Part Schematics Acquired 14 | . . . . . 14 . Parts Built . | . . . . . . . Authchips . | . . . . . . . Time . | . . . . . . . Total Part Build Rating . | . . . . . . . Parts Repaired . | . . . . . . . Time . | . . . . . . . Parts Recycled . | . . . . . . . Recycled Matter . | . . . . . . . Retrieved Matter . | . . . . . . . Retrieved Components . | . . . . . . . Parts Scanalyzed . | . . . . . . . Part Schematics Acquired . | . . . . . . . Parts Damaged . | . . . . . . . Bothacking | -11 -10 -10 -9 -9 -7 -7 ------------ Run | Yrd Mat Min Mat Min Zio Dee Used RIF Installer . | . . . . . . . Robots Hacked . | . . . . . . . Non-combat . | . . . . . . . Combat . | . . . . . . . Robot Hacks Applied . | . . . . . . . Relay Couplers Released . | . . . . . . . Fabnet Peak Effective % . | . . . . . . . Robots Rewired . | . . . . . . . Allies Hacked . | . . . . . . . Hacks Repelled . | . . . . . . . Allies | -11 -10 -10 -9 -9 -7 -7 -------- Run | Yrd Mat Min Mat Min Zio Dee Total Allies 9 | . . . . 5 4 . Largest Group 7 | . . . . 5 7 4 Highest-Rated Group 192 | . . . . 81 192 80 Highest-Rated Ally 40 | . . . . 31 40 40 Total Orders . | . . . . . . . Ally Attacks 19 | . . . . . . 19 Total Damage 159 | . . . . . . 159 Kills 2 | . . . . . . 2 Allies Corrupted . | . . . . . . . Allies Melted . | . . . . . . . Intel | -11 -10 -10 -9 -9 -7 -7 ------- Run | Yrd Mat Min Mat Min Zio Dee Active Infowar (turns) 1456 | . . . 564 145 618 129 Optics 1456 | . . . 564 145 618 129 Robot Analysis Total . | . . . . . . . Derelict Logs Recovered 3 | . . 2 . . 1 . Drone Launches . | . . . . . . . Drone Recoveries . | . . . . . . . Exploration | -11 -10 -10 -9 -9 -7 -7 ------------- Run | Yrd Mat Min Mat Min Zio Dee Turns Passed 1895 | 285 13 135 570 145 618 129 Spaces Moved 2511 | 168 9 160 412 205 1247 310 Core 16 | 4 . . . . . 12 Treads 180 | 164 9 7 . . . . Legs . | . . . . . . . Wheels . | . . . . . . . Hover . | . . . . . . . Flight 2315 | . . 153 412 205 1247 298 Fastest Speed 31 | 50 160 37 31 31 31 31 Average Speed 41 | 157 160 43 32 31 31 34 Slowest Speed 160 | 160 160 160 120 31 31 120 Overloaded Moves . | . . . . . . . Propulsion Burnouts . | . . . . . . . Robots Hopped 5 | . . . . 5 . . Potential Cave-ins . | . . . . . . . Cave-ins Triggered . | . . . . . . . Exploration Rate (%) 40 | 6 5 35 35 42 88 73 Regions Visited 6 Branch Regions 4 Pre-discovered Areas 2 | . . 1 . . 1 . Known Exits Taken 1 | . . . 1 . . . Unknown Exits Taken 5 | 1 1 1 . 1 1 . Scrap Searched 4 | . . 1 . 1 2 . Spaces Dug 13 | . . . 13 . . . Terrain Destroyed 53 | . . . 32 . . 21 Melee . | . . . . . . . Projectile . | . . . . . . . AOE 53 | . . . 32 . . 21 Terrain Rammed . | . . . . . . . Walls Destroyed . | . . . . . . . Machines Disabled . | . . . . . . . Actions | -11 -10 -10 -9 -9 -7 -7 --------- Run | Yrd Mat Min Mat Min Zio Dee Total 3246 | 182 8 199 777 280 1480 320 Wait 610 | . . . 308 80 222 . Move 2496 | 167 8 159 411 195 1246 310 Hop 4 | . . . . 4 . . Pick Up 18 | 2 . 5 4 1 6 . Fast Attach 13 | 6 . 2 5 . . . Attach 7 | . . 1 6 . . . Detach 2 | . . 2 . . . . Swap 14 | . . 7 6 . . 1 Drop 13 | . . 6 . . 6 1 Fire 60 | . . 17 35 . . 8 Melee 2 | . . . 2 . . . Ram . | . . . . . . . Kick . | . . . . . . . Crush 7 | 7 . . . . . . Escape Stasis . | . . . . . . . Rewire . | . . . . . . . Trap . | . . . . . . . Miscellaneous . | . . . . . . . Route ------- -11/Scrapyard -10/Materials -10/Mines -9/Materials (discovered 5 exits: Mat x3 / *Min x2) -9/Mines (discovered 3 exits: *Mat x2 / *Zio) -7/Zion -7/Deep Caves History --------- Turn | Location | Event 21 | -11/Scrapyard | Discovered new exit (range 14) 286 | -11/Scrapyard | Entered Materials 286 | -10/Materials | Discovered new exit (range 7) 299 | -10/Materials | Entered Mines 306 | -10/Mines | Build established: Mutant 339 | -10/Mines | Met a Derelict shopkeep closing up shop 427 | -10/Mines | Learned location of 1 exit from Materials 429 | -10/Mines | Discovered new exit (range 5) 434 | -10/Mines | Entered Materials 434 | -9/Materials | Evolved 2 slots: Propulsion x2 435 | -9/Materials | Identified exit to Mines 791 | -9/Materials | Build established: Scavenger-Sprinter 830 | -9/Materials | Identified exit to Materials 1000 | -9/Materials | Discovered exit to Mines (range 12) 1004 | -9/Materials | Entered Mines 1009 | -9/Mines | Discovered exit to Materials (range 15) 1034 | -9/Mines | Assisted by bots powering up and referring to "LRC-V3" 1074 | -9/Mines | Met a Derelict bent on vengeance 1075 | -9/Mines | Discovered exit to Materials (range 14) 1080 | -9/Mines | A Derelict revealed a hidden shortcut to a safe place 1149 | -9/Mines | Entered Zion 1149 | -7/Zion | Accompanied by 5 allies 1199 | -7/Zion | Led the pair of lost Derelicts to a safe place 1279 | -7/Zion | Learned location of Warlord (-5) 1366 | -7/Zion | Given A8's code to call for help 1378 | -7/Zion | Met Imprinter 1385 | -7/Zion | Imprinted 1387 | -7/Zion | Declared Zion's savior 1435 | -7/Zion | Learned Factory terminal intel 1457 | -7/Zion | Learned Factory fabricator intel 1500 | -7/Zion | Acquired unknown access codes intercepted by a Zionite 1634 | -7/Zion | Opened final containment barrier to the Deep Caves 1639 | -7/Zion | Discovered new exit (range 5) 1639 | -7/Zion | Saw the warning signs outside the Deep Caves entrance 1767 | -7/Zion | Entered Deep Caves 1767 | -7/Deep Caves | Accompanied by 7 allies 1814 | -7/Deep Caves | Z-Facility disabled 1832 | -7/Deep Caves | Attacked by Z-Imprinter 1880 | -7/Deep Caves | Core integrity fell below 50% 1887 | -7/Deep Caves | Spotted AG-65067 1893 | -7/Deep Caves | Core integrity fell below 20% 1896 | -7/Deep Caves | Destroyed by Z-Imprinter with Zionite Laser-M Last Messages --------------- head out this way. We'll go back and get... reinforcements... yeah." 01769_ V5-7SA(M) slips into the shadows. 01770_ 8D-KEH(M) slips into the shadows. 01770_ OX-EXY(M) slips into the shadows. 01771_ LY-RI0(M) slips into the shadows. 01790_ as-53049 destroyed. 01792_ The unstable cave ceiling collapses. 01806_ NEW_ZION: Z-Facility proximity alert. 01814_ Z-Facility disabled. Z-Imprinter: GET AWAY FROM HERE! I've worked too hard for our future just to have you ruin everything! 01836_ Rocket Launcher destroyed. 01842_ Lgt. Assault Rifle destroyed. 01863_ Flight Unit destroyed. 01867_ Dropped Com. Matter Pod. 01869_ Extracted 10 matter. 01873_ Ion Engine destroyed. 01884_ XT-493(s) destroyed. 01890_ AG-65067: "DSI9AT1D G8OHIBQ29FWG 26R186 QD12WHW8W33 TDK1 81FTS" 01891_ Flight Unit destroyed. Map ----- +----------------------------------------------------+ | | | | | | | | | | | | | | | | | | | | | | | | | | | | | | | | | | | | | | | | | | | | | | | | | ????????""###;############????????? | | ????????" @ #???????? | | ????????"" #####??????????## | | ????????""" #?????????## | | ????????" ######?????????# | | ????????" # # #??????????# | | ????????"" # # #?????????## | | ????????" # #?##??????# | | ????????"" # #? #??????# | | ????????" #? #?????## | | ????????""" #? #????## | | ????????" ## #????# | | ????????" # ###### | | ????????" ### | | ????????# ] ###?# | | ????????"" I ##???# | | ?????????" ###???????# | | ?????????" l #???????# | | ?????????" #"###??????# | | ????????"" ! ! ### #??????# | | ????????# ! ### ####???# | | ????????# # #???## | | ????????# ##??????# | | ????????# ###????? | | ????????# ! #????? | | ????????# ###????? | +----------------------------------------------------+ Best States ------------- Heat Dissipation 28 Energy Generation 12 Energy Capacity 265 Matter Stores 450 Matter Capacity 450 Sight Range 18 Terrain Scan Density 10 Evasion (%) 63 Recoil Reduction 2 Authchip Count 1 Item Schematics ----------------- Adv. Sensor Array | -7/Zion | Archive Imp. Carbon-fiber Leg | -7/Zion | Archive Transmission Jammer | -7/Zion | Archive Adv. Terrain Scanner | -7/Zion | Archive Plasma Rifle | -7/Zion | Archive Imp. EM Pulse Cannon | -7/Zion | Archive Imp. Plasma Cutter | -7/Zion | Archive Enh. Gauss Cannon | -7/Zion | Archive Chainsword | -7/Zion | Archive Phase Cannon | -7/Zion | Archive Gatling Laser | -7/Zion | Archive Nuclear Pulse Thruster | -7/Zion | Archive Shock Absorption System | -7/Zion | Archive Drone Bay | -7/Zion | Archive Robot Schematics ------------------ S-27 Virus | -7/Zion | Archive L-41 Fighter | -7/Zion | Archive A-02 Transporter | -7/Zion | Archive Fabricated ------------ Nothing Repaired ---------- Nothing Alien Tech Used ----------------- None Achievements -------------- None Challenges ------------ None Game ------ Seed HeartAlphaPerforator Manual? 0 Play Time 00:36:34 Cumulative 18.1 hours Start 2025.05.16 @ 23:01:14 End 2025.05.16 @ 23:39:42 Sessions 1 Manual Loads 0 Difficulty Rogue Special Mode None Game No. 40 Rogue 40 Adventurer 0 Explorer 0 Win Type - Total 0 Types 0/0/0/0/0/0/0/0/0/0 Lore% 28 Gallery% 18 Achievement% 19 Wizard Run 0 Options --------- Layout 1 ASCII 0 Keyboard 0 Movement Mouse Keybinds 0 Fullscreen 1 Font 32/SmallcapsGlow Map View 77x35 Zoom Use 0% Tactical HUD 1 Map Filters NONE Filters NONE Steam 1 RUN: 2abecbcf-517f-426a-a736-f908eb4f0e09